Cogmind - Beta 10.2 @@@ ROGUE MODE // 2021.04.04 @ 08:50:42 Player: TannHaals Result: Destroyed by G-47 Trooper with Particle Gun Performance ------------- Evolutions (0) 0 Regions Visited (1) 200 Robots Destroyed (2) 10 Value Destroyed (68) 68 Prototype IDs (0) 0 Alien Tech Used (0) 0 Bonus (0) 0 TOTAL SCORE: 278 Bonus ------- None Cogmind --------- Core Integrity 0/250 Matter 245/300 Energy 100/100 System Corruption 0% Temperature Cool (18) Movement Core (150) Ox2 Location -10/Materials Parts ------- > --- POWER (1) -------- (None) > --- PROPULSION (2) --- (None) > --- UTILITY (2) ------ Medium Storage Unit > --- WEAPON (2) ------- (None) > --- INVENTORY (8) ---- Heat Sink Peak State ------------ > --- POWER ------------ Ion Engine > --- PROPULSION ------- Wheel Wheel > --- UTILITY ---------- Small Storage Unit Terrain Scanner > --- WEAPON ----------- Small Laser Light Assault Rifle > --- INVENTORY -------- Light Assault Rifle Grenade Launcher [Rating: 7] Favorites ----------- Power Ion Engine Engine Ion Engine Propulsion Wheel Wheel Wheel Utility Medium Storage Unit Device Terrain Scanner Storage Medium Storage Unit Weapon Light Assault Rifle Energy Gun Small Laser Ballistic Gun Light Assault Rifle Launcher Grenade Launcher Build | -11 -10 ------- Run | Scr Mat Slots Evolved . | . . Power . | . . Propulsion . | . . Utility . | . . Weapon . | . . Parts Attached 11 | 7 4 Power 2 | 2 . Engine 2 | 2 . Core . | . . Reactor . | . . Propulsion 2 | 2 . Treads . | . . Leg . | . . Wheel 2 | 2 . Hover . | . . Flight . | . . Utility 3 | 1 2 Device 1 | . 1 Storage 2 | 1 1 Processor . | . . Hackware . | . . Protection . | . . Artifact . | . . Weapon 4 | 2 2 Energy Gun 1 | 1 . Energy Cannon . | . . Ballistic Gun 2 | 1 1 Ballistic Cannon . | . . Launcher 1 | . 1 Special Weapon . | . . Impact Weapon . | . . Slashing Weapon . | . . Piercing Weapon . | . . Special Melee Weapon . | . . Unidentified Prototypes . | . . Parts Lost 8 | . 8 Power 1 | . 1 Propulsion 2 | . 2 Utility 1 | . 1 Weapon 4 | . 4 Highest Loss Streak 8 | . 8 Average Slot Usage (%) 84 | . 84 Engine 11 | . 11 Wheel 23 | . 23 Device 9 | . 9 Storage 14 | . 14 Energy Gun 11 | . 11 Ballistic Gun 11 | . 11 Naked Turns . | . . Heaviest Build 16 | 11 16 Greatest Support 20 | 20 20 Greatest Overweight (x) 2 | 2 2 Average Overweight (x) . | . . Largest Inventory Capacity 8 | 6 8 Average Capacity 7 | 5 7 Most Carried 3 | 3 3 Average Carried 2 | 1 2 Final Capacity 8 | 6 8 Final Carried 1 | 1 1 Class Distribution -------------------- 100% | Mutant Dominant Class ---------------- Mutant | -10/Materials Resources | -11 -10 ----------- Run | Scr Mat Matter Collected 250 | 214 36 Remotely . | . . Salvage Created 76 | . 76 Parts 4 | . 4 Haulers Intercepted . | . . Recyclers Shooed . | . . Parts Field Recycled . | . . Retrieved Matter . | . . Parts Self-Destructed . | . . Prevented . | . . Kills | -11 -10 ------- Run | Scr Mat Combat Hostiles Destroyed 2 | . 2 Guns 1 | . 1 AOE 1 | . 1 Classes Destroyed 1 | . 1 Grunt 2 | . 2 Best Kill Streak 1 | . 1 Combat Bots Only 1 | . 1 Max Kills in Single Turn 1 | . 1 Gunslinging . | . . Exploded 1 | . 1 Melee . | . . Uniques/NPCs Destroyed . | . . Combat | -11 -10 -------- Run | Scr Mat Damage Taken 815 | . 815 Core 261 | . 261 Absorbed by Shields . | . . Core Remaining (%) 100 | 100 . Volleys Fired 27 | . 27 Largest 2 | . 2 Hottest 60 | . 60 Shots Fired 48 | . 48 Gun 47 | . 47 Cannon . | . . Launcher 1 | . 1 Special . | . . Kinetic 25 | . 25 Thermal 22 | . 22 Explosive 1 | . 1 Electromagnetic . | . . Robot Hit Streak 5 | . 5 Robot Miss Streak 2 | . 2 Penetration Max . | . . Secondary Targets . | . . Shots Hit Robots 34 | . 34 Core Hits 6 | . 6 Critical Hits . | . . Critical Kills . | . . Critical Parts Destroyed . | . . Melee Attacks . | . . Impact . | . . Slashing . | . . Piercing . | . . Sneak Attacks . | . . Combat Hostiles . | . . Follow-up Attacks . | . . Damage Inflicted 215 | . 215 Guns 162 | . 162 Cannons . | . . Explosions 53 | . 53 Melee . | . . Ramming . | . . Kinetic 95 | . 95 Thermal 67 | . 67 Explosive 53 | . 53 Electromagnetic . | . . Impact . | . . Slashing . | . . Piercing . | . . Highest Corruption . | . . Average Corruption . | . . Corruption Purged . | . . Overload Shots . | . . Overflow Damage . | . . Projectiles . | . . Explosions . | . . Melee . | . . Knockbacks . | . . Impact . | . . Kinetic . | . . Secondary . | . . Self-Inflicted Damage 14 | . 14 Shots 1 | . 1 Rammed . | . . Targets Rammed . | . . Kicked . | . . Crushed . | . . Highest Temperature 177 | . 177 Average Temperature 51 | . 51 Received Heat Transfer 453 | . 453 Siege Activations . | . . Robots Corrupted . | . . Combat Hostiles . | . . Parts Fried . | . . Impact Corruptions . | . . Robots Melted . | . . Combat Hostiles . | . . Parts Melted . | . . Heat Transferred 150 | . 150 Parts Sabotaged . | . . Parts Stolen . | . . Parts Stripped . | . . Power Chain Reactions . | . . Missiles Intercepted . | . . Alert | -11 -10 ------- Run | Scr Mat Peak Influence 36 | . 36 Initial . | . . Average 10 | . 12 Maximum Alert Level . | . . Low Security (%) 100 | 100 100 Level 1 . | . . Level 2 . | . . Level 3 . | . . Level 4 . | . . Level 5 . | . . High Security . | . . Max Security . | . . Squads Dispatched 2 | . 2 Investigation . | . . Extermination . | . . Reinforcement 2 | . 2 Assault . | . . Garrison . | . . Intercept . | . . Construction Impeded . | . . Haulers Reinforced . | . . Stealth | -11 -10 --------- Run | Scr Mat Distress Signals 1 | . 1 Communications Jammed . | . . Distress Signals . | . . Times Spotted 10 | . 10 Peak Tracking Total 6 | . 6 Tactical Retreats . | . . Traps | -11 -10 ------- Run | Scr Mat Traps Triggered . | . . Indirectly . | . . Trap Hack Attempts . | . . Triggered . | . . Disarmed . | . . Reprogrammed . | . . Reused . | . . Traps Extracted . | . . Installed . | . . Triggered . | . . Machines | -11 -10 ---------- Run | Scr Mat Machines Disabled . | . . Max in Single Turn . | . . Machines Sabotaged . | . . Garrisons Compromised . | . . Overloaded Fab Kills . | . . Fab Network Shutdowns . | . . Hacking | -11 -10 --------- Run | Scr Mat Machines Accessed 1 | . 1 Terminals . | . . Fabricators . | . . Repair Stations . | . . Recycling Units 1 | . 1 Scanalyzers . | . . Garrison Access . | . . Total Hacks 4 | . 4 Successful 3 | . 3 Failed 1 | . 1 Catastrophic . | . . Database Lockouts . | . . Manual . | . . Terminals . | . . Fabricators . | . . Repair Stations . | . . Recycling Units 4 | . 4 Scanalyzers . | . . Garrison Access . | . . Terminal Hacks . | . . Fabricator Hacks . | . . Repair Station Hacks . | . . Recycling Unit Hacks 3 | . 3 Recycle Component 1 | . 1 Process 1 | . 1 Report Inventory 1 | . 1 Scanalyzer . | . . Garrison Access Hacks . | . . Unauthorized Hacks . | . . Terminals . | . . Fabricators . | . . Repair Stations . | . . Recycling Units . | . . Scanalyzers . | . . Garrison Access . | . . Data Cores Recovered . | . . Used . | . . Hacking Detections 1 | . 1 Full Trace Events . | . . Feedback Events . | . . Feedback Blocked . | . . Robot Schematics Acquired . | . . Robots Built . | . . Matter . | . . Time . | . . Total Robot Build Rating . | . . Part Schematics Acquired . | . . Parts Built . | . . Matter . | . . Time . | . . Total Part Build Rating . | . . Parts Repaired . | . . Time . | . . Parts Recycled 1 | . 1 Recycled Matter 75 | . 75 Retrieved Matter . | . . Retrieved Components . | . . Parts Scanalyzed . | . . Part Schematics Acquired . | . . Parts Damaged . | . . Bothacking | -11 -10 ------------ Run | Scr Mat Used RIF Installer . | . . Robots Hacked . | . . Non-combat . | . . Combat . | . . Robot Hacks Applied . | . . Relay Couplers Released . | . . Robots Rewired . | . . Allies Hacked . | . . Hacks Repelled . | . . Allies | -11 -10 -------- Run | Scr Mat Total Allies . | . . Largest Group . | . . Highest-Rated Group . | . . Highest-Rated Ally . | . . Total Orders . | . . Ally Attacks . | . . Total Damage . | . . Kills . | . . Allies Corrupted . | . . Allies Melted . | . . Intel | -11 -10 ------- Run | Scr Mat Robot Analysis Total . | . . Derelict Logs Recovered . | . . Drone Launches . | . . Drone Recoveries . | . . Exploration | -11 -10 ------------- Run | Scr Mat Turns Passed 239 | 47 192 Spaces Moved 156 | 34 122 Core 21 | 12 9 Treads . | . . Legs . | . . Wheels 135 | 22 113 Hover . | . . Flight . | . . Fastest Speed 50 | 50 80 Average Speed 85 | 87 85 Slowest Speed 150 | 150 150 Overloaded Moves . | . . Propulsion Burnouts . | . . Robots Hopped . | . . Cave-ins Triggered . | . . Exploration Rate (%) 11 | 4 18 Regions Visited 1 Branch Regions . Pre-discovered Areas . | . . Known Exits Taken . | . . Unknown Exits Taken 1 | 1 . Scrap Searched . | . . Spaces Dug . | . . Terrain Destroyed 10 | . 10 Melee . | . . Projectile . | . . AOE 10 | . 10 Terrain Rammed . | . . Walls Destroyed . | . . Machines Disabled . | . . Actions | -11 -10 --------- Run | Scr Mat Total 218 | 51 167 Wait 10 | 2 8 Move 155 | 33 122 Hop . | . . Pick Up 13 | 8 5 Fast Attach . | . . Attach 9 | 6 3 Detach . | . . Swap 2 | 1 1 Drop 2 | 1 1 Fire 27 | . 27 Melee . | . . Ram . | . . Kick . | . . Crush . | . . Escape Stasis . | . . Rewire . | . . Trap . | . . Miscellaneous . | . . Route ------- -11/Scrapyard -10/Materials History --------- Turn | Location | Event 22 | -11/Scrapyard | Discovered new exit (range 16) 48 | -11/Scrapyard | Entered Materials 231 | -10/Materials | Core integrity fell below 50% 238 | -10/Materials | Core integrity fell below 20% 240 | -10/Materials | Destroyed by G-47 Trooper with Particle Gun Last Messages --------------- ALERT: Hostiles spotted, dispatching reinforcements to Terminal M008. O-16 Technician locks terminal. K-01 Serf collects debris. Terrain Scanner destroyed. K-01 Serf collects debris. Wheel destroyed. K-01 Serf collects debris. Wheel destroyed. Lgt. Assault Rifle destroyed. K-01 Serf collects debris. Sml. Laser destroyed. Ion Engine destroyed. G-34 Mercenary destroyed. K-01 Serf collects debris. Grenade Launcher destroyed. K-01 Serf collects debris. The unstable cave ceiling collapses. R-06 Scavenger collects Aluminum Leg. Lgt. Assault Rifle destroyed. R-06 Scavenger collects Sml. Laser. Map ----- +----------------------------------------------------+ | ?????????????????????????????????????????????????? | | ?????????????????????????????????????????????????? | | ?????????????????????????????????????##??????????? | | ????????????????????????????????????? #??????????? | | ???????????????????????????????????? +??????????? | | ????????????????????????????????? ?? # ?????????? | | ?????????????????????????????????# ? #??????????? | | ?????????????????????????????????# ? #????????? ? | | ?????????????????????????????????# #???? ?#??? | | ?????????????????????????????????? ???????????? | | ??????????????????????????????????? #??######### | | ???????????????????????????????#####/##### """ """ | | ???????????????????????? ??????# / [ + """ """ | | ????????????????????????????? ?# # """ """ | | ??????????????????????#???#????# # | | ???????????????????????????????# # | | ???????????????????#????????? ?# ####/#### | | ???????????????????????#???? ??# / #??? | | ???????????????????????????????# = ### #??? | | ???????????????????############# #?# #??? | | ???????????????????# ###/#########?# #?## | | ???????????????????# r #???#?## ### | | ???????????????????# g g ##?????## | | ???????????????????# """ ggggr #????#?# | | ???????????????????# """ % ##??????###### | | ???????????????????# """ @ #???#????????## | | ???????????????????# "Y" # #######?#????# | | ???????????????????# """ ## # #??????# | | ???????????????????############ # #?#????# | | ??????????????????????????????# + #??????# | | ????????????????#?????????????# # #????? # | | ??????????????????????????????# # #??????# | | ?????????????????????#????????# # #??????+ | | ????????????????????????#?????##### #??????# | | ??????????????????????????????????# #??????# | | ??????????????????????????????????# #??????# | | ??????????????????????????????????# #??????# | | ??????????????????????????????????# #??????? | | ??????????????????????????????????#########??????? | | ?????????????????????????????????????????????????? | | ?????????????????????????????????????????????????? | | ?????????????????????????????????????????????????? | | ?????????????????????????????????????????????????? | | | | | | | | | | | | | | | +----------------------------------------------------+ Best States ------------- Heat Dissipation 25 Energy Generation 10 Energy Capacity 250 Matter Stores 254 Matter Capacity 300 Sight Range 16 Terrain Scan Range 14 Terrain Scan Density 10 Evasion (%) 50 Item Schematics ----------------- None Robot Schematics ------------------ None Fabricated ------------ Nothing Alien Tech Used ----------------- None Achievements -------------- None Challenges ------------ None Game ------ Seed SegregatorSurveybotStorm Manual? 0 Play Time 00:12:19 Cumulative 2.7 hours Start 2021.04.04 @ 08:38:51 End 2021.04.04 @ 08:50:42 Sessions 1 Manual Loads 0 Difficulty Rogue Special Mode None Game No. 5 Rogue 5 Adventurer 0 Explorer 0 Win Type - Total 0 Types 0/0/0/0/0/0/0/0/0 Lore% 1 Gallery% 6 Achievement% 5 Wizard Run 0 Options --------- ASCII 0 Keyboard 0 Movement Numpad Keybinds 0 Fullscreen 1 Font 18/SmallcapsGlow Map View 76x50 Tactical HUD 0 Map Filters NONE Filters NONE Steam 1 RUN: a8589da9-f19e-43a9-bbe3-972b639bd2c3